bitfinex/quotes_BTCUSD_20240717
["timestamp","ask_amount","ask_price","bid_price","bid_amount"]
[1721190935956,4.59720452,65677.0,65676.0,5.85030427]
[1721190936198,4.35300452,65677.0,65676.0,6.78118749]
[1721190936406,4.35500452,65677.0,65676.0,6.78118749]
[1721190936556,4.35500452,65677.0,65676.0,6.91750181]
[1721190936775,4.35400452,65677.0,65676.0,6.83809208]
[1721190936962,3.26740452,65677.0,65676.0,6.9579064]
[1721190937702,3.26740452,65677.0,65676.0,7.7052194]
[1721190937703,3.26540452,65677.0,65676.0,7.7052194]
[1721190937838,3.26540452,65677.0,65676.0,7.51965216]
[1721190938042,3.26540452,65677.0,65676.0,7.59683453]
[1721190938244,2.82901931,65677.0,65676.0,7.79811115]
[1721190938443,2.63859275,65677.0,65676.0,7.59683453]
[1721190938873,2.63859275,65677.0,65676.0,7.59197549]
[1721190939079,2.63859275,65677.0,65676.0,7.81217549]
[1721190939532,2.63959275,65677.0,65676.0,7.81703453]
[1721190941007,2.63959275,65677.0,65676.0,7.81691982]
[1721190943139,2.63959275,65677.0,65676.0,8.34941982]
[1721190943337,2.63959275,65677.0,65676.0,8.36427156]
[1721190943528,2.63959275,65677.0,65676.0,8.35513124]
[1721190943761,2.63582136,65677.0,65676.0,8.35513124]
[1721190944178,2.63582136,65677.0,65676.0,8.03924162]
[1721190944417,2.63582136,65677.0,65676.0,8.45220465]
[1721190944562,2.63582136,65677.0,65676.0,8.53955357]
[1721190944761,2.59926444,65677.0,65676.0,8.53955357]
[1721190944966,2.59926444,65677.0,65676.0,9.01192271]
[1721190947182,2.59926444,65677.0,65676.0,9.01184447]
[1721190947384,2.59693167,65677.0,65676.0,9.01175886]
[1721190947629,2.59540655,65677.0,65676.0,9.01175886]
[1721190948623,2.59540655,65677.0,65676.0,9.09787801]
[1721190948825,2.59540655,65677.0,65676.0,9.33477263]
[1721190949655,2.59540655,65677.0,65676.0,9.36527263]
[1721190950791,2.59440655,65677.0,65676.0,9.3513143]
[1721190951146,2.59440655,65677.0,65676.0,8.8048143]
[1721190951351,2.59540655,65677.0,65676.0,8.58191968]
[1721190951552,2.59540655,65677.0,65676.0,8.10959763]
[1721190951758,2.59540655,65677.0,65676.0,8.02223691]
[1721190951959,2.59540655,65677.0,65676.0,7.92513691]
[1721190952160,2.59540655,65677.0,65676.0,8.32513691]
[1721190952364,2.59540655,65677.0,65676.0,4.41382437]
[1721190952563,2.59540655,65677.0,65676.0,4.69438875]
[1721190952764,2.59540655,65677.0,65676.0,4.83010859]
[1721190953290,2.59540655,65677.0,65676.0,4.81610859]
[1721190953517,2.59540655,65677.0,65676.0,4.11610859]
[1721190953719,2.59540655,65677.0,65676.0,4.19036105]
[1721190953947,2.59540655,65677.0,65676.0,4.81629185]
[1721190954426,2.59440655,65677.0,65676.0,3.98056842]
[1721190954567,2.59540655,65677.0,65676.0,3.99356842]
[1721190954771,2.59540655,65677.0,65676.0,4.03563868]
[1721190955029,2.59540655,65677.0,65676.0,4.02732538]
[1721190955030,2.59440655,65677.0,65676.0,4.02732538]
[1721190955180,2.59440655,65677.0,65676.0,3.82732538]
[1721190955508,2.59440655,65677.0,65676.0,3.47586789]
[1721190955707,2.59440655,65677.0,65676.0,3.68986789]
[1721190955914,2.59540655,65677.0,65676.0,3.50186789]
[1721190956108,2.59540655,65677.0,65676.0,3.97150011]
[1721190956311,2.59540655,65677.0,65676.0,3.78787341]
[1721190956511,2.59540655,65677.0,65676.0,3.80187341]
[1721190956719,2.59540655,65677.0,65676.0,4.13940092]
[1721190956912,2.59540655,65677.0,65676.0,4.13945238]
[1721190957179,2.59540655,65677.0,65676.0,4.12545238]
[1721190957346,2.59540655,65677.0,65676.0,3.93945238]
[1721190957520,2.59640655,65677.0,65676.0,3.88455786]
[1721190957757,2.59640655,65677.0,65676.0,2.93799518]
[1721190957956,2.67520655,65677.0,65676.0,2.81299518]
[1721190958160,2.67520655,65677.0,65676.0,2.87127927]
[1721190958161,2.73710655,65677.0,65676.0,2.87127927]
[1721190958566,2.73710655,65677.0,65676.0,2.67992007]
[1721190958766,2.73710655,65677.0,65676.0,2.89392007]
[1721190959405,2.73710655,65677.0,65676.0,2.91199518]
[1721190959655,2.73710655,65677.0,65676.0,3.263516]
[1721190960068,2.73710655,65677.0,65676.0,3.56804882]
[1721190960345,2.73710655,65677.0,65676.0,3.55404882]
[1721190960501,2.73710655,65677.0,65676.0,3.63124579]
[1721190960703,2.73610655,65677.0,65676.0,3.61824545]
[1721190960934,2.73610655,65677.0,65676.0,3.78923309]
[1721190961127,2.73710655,65677.0,65676.0,3.78923309]
[1721190961763,2.73710655,65677.0,65676.0,3.77523309]
[1721190961905,2.59540655,65677.0,65676.0,3.77523309]
[1721190962111,2.59624655,65677.0,65676.0,3.78923349]
[1721190962307,2.59624655,65677.0,65676.0,3.78919024]
[1721190962692,2.59624655,65677.0,65676.0,3.75019024]
[1721190962821,2.59624655,65677.0,65676.0,3.76419024]
[1721190963020,2.59624655,65677.0,65676.0,3.9003338]
[1721190963220,2.59624655,65677.0,65676.0,3.9003379]
[1721190964781,2.59624655,65677.0,65676.0,3.60620215]
[1721190964989,2.59624655,65677.0,65676.0,5.16717715]
[1721190965134,2.59624655,65677.0,65676.0,3.96134982]
[1721190965336,2.74014655,65677.0,65676.0,3.60682482]
[1721190965538,2.74014655,65677.0,65676.0,2.38150855]
[1721190965764,2.74014655,65677.0,65676.0,2.85211455]
[1721190965981,2.74014655,65677.0,65676.0,2.31018857]
[1721190966126,2.74014655,65677.0,65676.0,1.64338923]
[1721190966357,2.74014655,65677.0,65676.0,1.59797739]
[1721190966568,2.74014655,65677.0,65676.0,1.90250239]
[1721190966954,2.74014655,65677.0,65676.0,2.00250239]
[1721190967422,2.73914655,65677.0,65676.0,1.98950239]
[1721190967627,2.73914655,65677.0,65676.0,1.97550239]
[1721190967827,2.74014655,65677.0,65676.0,2.03350239]
[1721190968024,2.74014655,65677.0,65676.0,1.98550239]
[1721190968025,2.73914655,65677.0,65676.0,1.98550239]
[1721190968233,2.73914655,65677.0,65676.0,1.99250239]
[1721190968450,2.74014655,65677.0,65676.0,1.99250239]
[1721190968591,2.73914655,65677.0,65676.0,1.97551956]
[1721190968787,2.73914655,65677.0,65676.0,1.99051956]
[1721190968985,2.74014655,65677.0,65676.0,1.99051956]
[1721190969333,2.74014655,65677.0,65676.0,2.4844263]
[1721190969730,2.74014655,65677.0,65676.0,2.4944263]
[1721190970709,2.74114655,65677.0,65676.0,2.5064263]
[1721190970910,2.74014655,65677.0,65676.0,2.5064263]
[1721190971299,2.74114655,65677.0,65676.0,2.5184263]
[1721190971857,2.74114655,65677.0,65676.0,2.50842271]
[1721190971999,2.74114655,65677.0,65676.0,2.38200637]
[1721190972204,2.74114655,65677.0,65676.0,2.51542197]
[1721190972623,2.74114655,65677.0,65676.0,2.45842197]
[1721190973022,2.74114655,65677.0,65676.0,2.47042197]
[1721190973426,2.74114655,65677.0,65676.0,2.52042197]
[1721190973829,2.74114655,65677.0,65676.0,2.01151523]
[1721190974842,2.74114655,65677.0,65676.0,1.87309963]
[1721190975008,2.73914655,65677.0,65676.0,1.98752329]
[1721190975404,2.73914655,65677.0,65676.0,2.19190503]
[1721190976053,2.73914655,65677.0,65676.0,2.49643003]
[1721190976493,2.73914655,65677.0,65676.0,2.06548137]
[1721190976664,2.73914655,65677.0,65676.0,2.01548137]
[1721190976868,2.73914655,65677.0,65676.0,2.06548137]
[1721190977081,2.73914655,65677.0,65676.0,2.37000637]
[1721190981606,1.59534655,65677.0,65676.0,3.17905637]
[1721190981838,1.59534655,65677.0,65676.0,4.18025838]
[1721190982052,1.59534655,65677.0,65676.0,3.40025838]
[1721190982220,1.59534655,65677.0,65676.0,4.59573338]
[1721190982438,1.59534655,65677.0,65676.0,4.90025838]
[1721190982585,1.59534655,65677.0,65676.0,4.58373338]
[1721190982781,1.59534655,65677.0,65676.0,4.5977226]
[1721190982981,1.59634655,65677.0,65676.0,4.6097226]
[1721190983187,1.59634655,65677.0,65676.0,4.9022476]
[1721190983387,1.59634655,65677.0,65676.0,4.5977226]
[1721190983570,1.59734655,65677.0,65676.0,4.6097226]
[1721190983786,1.59734655,65677.0,65676.0,4.9142476]
[1721190984579,1.59734655,65677.0,65676.0,5.21620506]
[1721190984918,1.59734655,65677.0,65676.0,5.23020506]
[1721190985343,1.59534655,65677.0,65676.0,5.20420506]
[1721190985517,1.59534655,65677.0,65676.0,4.89968006]
[1721190985724,1.59634655,65677.0,65676.0,4.92568006]
[1721190985924,1.59634655,65677.0,65676.0,4.91368006]
[1721190986158,1.59634655,65677.0,65676.0,4.89968006]
[1721190986384,1.59734655,65677.0,65676.0,5.23020506]
[1721190986737,1.59534655,65677.0,65676.0,4.90224734]
[1721190986937,1.59534655,65677.0,65676.0,4.91424734]
[1721190987283,1.59634655,65677.0,65676.0,4.90224734]
[1721190987501,1.59534655,65677.0,65676.0,4.90224734]
[1721190988258,1.59534655,65677.0,65676.0,4.88824734]
[1721190988661,1.59534655,65677.0,65676.0,4.91424734]
[1721190989033,1.59634655,65677.0,65676.0,4.91424734]
[1721190989263,1.59534655,65677.0,65676.0,4.88824734]
[1721190989473,1.59634655,65677.0,65676.0,5.56766285]
[1721190989609,1.59534655,65677.0,65676.0,5.55566285]
[1721190989815,1.59534655,65677.0,65676.0,5.54166285]
[1721190990009,1.59634655,65677.0,65676.0,5.55366285]
[1721190990210,1.59634655,65677.0,65676.0,4.85105635]
[1721190990434,1.59634655,65677.0,65676.0,5.56766334]
[1721190990669,1.59734655,65677.0,65676.0,5.57966334]
[1721190991411,1.59734655,65677.0,65676.0,5.56566334]
[1721190991640,1.59734655,65677.0,65676.0,5.57966334]
[1721190991841,1.59734655,65677.0,65676.0,6.35966334]
[1721190992042,1.59534655,65677.0,65676.0,6.33566334]
[1721190992439,1.59534655,65677.0,65676.0,6.47195084]
[1721190992979,1.59534655,65677.0,65676.0,6.33566334]
[1721190993536,1.59534655,65677.0,65676.0,6.33565428]
[1721190993937,1.59534655,65677.0,65676.0,5.61905635]
[1721190994137,1.59534655,65677.0,65676.0,6.33565416]
[1721190994480,1.59534655,65677.0,65676.0,6.47299036]
[1721190994713,1.59534655,65677.0,65676.0,6.33657816]
[1721190995268,1.59634655,65677.0,65676.0,6.34857816]
[1721190995910,1.59634655,65677.0,65676.0,7.10989116]
[1721190996114,0.31545055,65677.0,65676.0,7.31131242]
[1721190996396,0.00114289,65682.0,65681.0,1.541755]
[1721190996732,5.3e-07,65695.0,65694.0,2.319984]
[1721190997059,0.46304871,65712.0,65711.0,0.05]
[1721190997262,0.46304871,65712.0,65711.0,1.39599414]
[1721190997534,0.15489097,65738.0,65711.0,1.39599414]
[1721190997535,0.15212,65738.0,65713.0,0.506529]
[1721190997828,0.00277097,65728.0,65713.0,0.89284764]
[1721190998030,0.00277097,65728.0,65713.0,2.50590664]
[1721190998187,0.15488797,65739.0,65713.0,2.50590664]
[1721190998413,0.152119,65738.0,65713.0,2.50590664]
[1721190998608,0.00277097,65728.0,65713.0,2.50590664]
[1721190999007,0.00277097,65734.0,65713.0,2.50590664]
[1721190999236,0.00277097,65734.0,65713.0,2.51990664]
[1721190999432,0.00277097,65734.0,65713.0,2.53390664]
[1721191000012,0.14284,65714.0,65713.0,2.53390492]
[1721191000773,0.14284,65714.0,65713.0,2.83825792]
[1721191001338,0.14284,65714.0,65713.0,2.82425792]
[1721191001798,0.14284,65714.0,65713.0,2.84253637]
[1721191001996,0.00084,65714.0,65713.0,2.82425792]
[1721191002194,0.00084,65714.0,65713.0,2.83825792]
[1721191002436,0.00084,65714.0,65713.0,2.82425792]
[1721191002595,0.00084,65714.0,65713.0,2.86965375]
[1721191002797,0.00084,65714.0,65713.0,3.18800675]
[1721191003042,0.00084,65714.0,65713.0,3.18799087]
[1721191003251,1e-06,65714.0,65713.0,3.14259514]
[1721191003395,1e-06,65714.0,65713.0,3.8460367]
[1721191003586,1e-06,65714.0,65713.0,3.73254738]
[1721191003934,1e-06,65714.0,65713.0,3.80372312]
[1721191004406,1e-06,65714.0,65713.0,3.56722424]
[1721191004603,1e-06,65714.0,65713.0,3.82473748]
[1721191004825,1e-06,65714.0,65713.0,3.78113952]
[1721191005218,1e-06,65714.0,65713.0,3.66938907]
[1721191005547,1e-06,65714.0,65713.0,3.73254636]
[1721191005723,0.010001,65714.0,65713.0,3.73254636]
[1721191005862,0.072901,65714.0,65713.0,3.33932652]
[1721191006081,0.072901,65714.0,65713.0,2.83823841]
[1721191006082,0.155101,65714.0,65713.0,2.83823841]
[1721191008605,0.010001,65714.0,65713.0,2.83823841]
[1721191008826,0.010001,65714.0,65713.0,3.2197662]
[1721191009209,0.010001,65714.0,65713.0,3.09344503]
[1721191009408,0.010001,65714.0,65713.0,3.21976846]
[1721191009793,0.061,65724.0,65723.0,0.25]
[1721191009999,0.061,65724.0,65723.0,3.00969717]
[1721191011106,0.061,65724.0,65723.0,3.04097216]
[1721191011707,0.061,65724.0,65723.0,3.10191116]
[1721191011926,0.01115097,65744.0,65742.0,0.760547]
[1721191012131,0.00838,65744.0,65742.0,0.760547]
[1721191012303,0.00838,65744.0,65742.0,0.76581762]
[1721191013153,0.01037,65743.0,65742.0,0.76581762]
[1721191013765,0.01037,65743.0,65742.0,0.46159862]
[1721191013971,0.01037,65743.0,65742.0,0.76581762]
[1721191014342,0.01037,65743.0,65742.0,0.76681762]
[1721191014688,0.01037,65743.0,65742.0,0.76581762]
[1721191014891,0.16737,65743.0,65742.0,0.76581762]
[1721191016073,0.16737,65743.0,65742.0,0.15737962]
[1721191016742,0.1447,65741.0,65736.0,0.304244]
[1721191016920,0.1447,65739.0,65737.0,0.15212]
[1721191017078,0.1447,65739.0,65738.0,0.152117]
[1721191017669,0.0651,65738.0,65733.0,0.30426]
[1721191017996,0.02037,65743.0,65729.0,0.04928504]
[1721191017997,0.0651,65730.0,65729.0,0.04928504]
[1721191018198,0.0651,65730.0,65707.0,0.67975876]
[1721191018199,0.304294,65726.0,65707.0,0.67975876]
[1721191018496,0.1447,65709.0,65708.0,0.58291534]
[1721191018686,0.1447,65709.0,65708.0,0.88729134]
[1721191020293,0.1447,65709.0,65708.0,1.19166734]
[1721191020922,0.1447,65709.0,65708.0,0.88729134]
[1721191021541,0.1447,65709.0,65708.0,0.88829134]
[1721191021900,0.1447,65709.0,65708.0,0.88929134]
[1721191022101,0.1447,65709.0,65708.0,0.89429134]
[1721191022875,0.1447,65709.0,65708.0,0.89829134]
[1721191023418,0.1447,65709.0,65708.0,1.20266734]
[1721191024020,0.1447,65709.0,65708.0,0.89829134]
[1721191024253,0.1447,65709.0,65708.0,0.9058443]
[1721191024572,0.1447,65709.0,65708.0,0.8988443]
[1721191024866,0.1447,65709.0,65708.0,1.2032203]
[1721191025008,0.1447,65709.0,65708.0,1.2062203]
[1721191025216,0.1447,65709.0,65708.0,1.2022203]
[1721191025456,0.1447,65709.0,65708.0,1.2012203]
[1721191025848,0.1447,65709.0,65708.0,1.2002203]
[1721191026084,0.1447,65709.0,65708.0,1.2072203]
[1721191026259,0.1457,65709.0,65708.0,1.2062203]
[1721191026663,0.1457,65709.0,65708.0,1.2071443]
[1721191027285,0.1457,65709.0,65708.0,1.08077574]
[1721191027498,0.1457,65709.0,65708.0,1.20714195]
[1721191027699,0.1457,65709.0,65708.0,1.21214195]
[1721191028697,0.1457,65709.0,65708.0,1.26214195]
[1721191029097,0.1457,65709.0,65708.0,1.21214195]
[1721191029756,0.1457,65709.0,65708.0,1.20714195]
[1721191030517,0.1457,65709.0,65708.0,1.20713893]
[1721191031362,0.1447,65709.0,65708.0,1.20013893]
[1721191031570,0.1447,65709.0,65708.0,1.26013893]
[1721191031571,0.0651,65709.0,65708.0,1.26013893]
[1721191031730,0.001,65709.0,65708.0,1.26913893]
[1721191032216,0.001,65709.0,65708.0,1.57351493]
[1721191032845,0.001,65709.0,65708.0,1.54851493]
[1721191033050,0.001,65709.0,65708.0,1.70289667]
[1721191033285,0.001,65709.0,65708.0,1.80289667]
[1721191033665,0.001,65709.0,65708.0,1.67653348]
[1721191033895,0.001,65709.0,65708.0,1.80289224]
[1721191035293,0.001,65709.0,65708.0,2.10726824]
[1721191035489,0.001,65709.0,65708.0,2.30726824]
[1721191036115,0.001,65709.0,65708.0,2.45016824]
[1721191036326,0.00084,65714.0,65713.0,1.619588]
[1721191036697,0.00084,65714.0,65713.0,2.32295858]
[1721191036891,0.00084,65714.0,65713.0,2.18735139]
[1721191037069,0.00084,65714.0,65713.0,2.31368231]
[1721191037824,0.00084,65714.0,65713.0,2.33195911]
[1721191038383,0.00084,65714.0,65713.0,2.34595911]
[1721191038632,0.00084,65714.0,65713.0,2.34595934]
[1721191038834,0.00084,65714.0,65713.0,2.65031234]
[1721191039035,0.00084,65714.0,65713.0,3.30274341]
[1721191039240,0.00084,65714.0,65713.0,3.47951272]
[1721191039480,0.00084,65714.0,65713.0,3.52380056]
[1721191039666,0.00084,65714.0,65713.0,5.02380056]
[1721191039868,0.04913749,65730.0,65729.0,1.419255]
[1721191040042,0.04913749,65730.0,65729.0,1.69996766]
[1721191040246,0.0608,65734.0,65733.0,1.064913]
[1721191040426,0.0608,65734.0,65733.0,1.79988666]
[1721191040633,0.07994576,65752.0,65737.0,1.064847]
[1721191040634,0.0619,65738.0,65737.0,1.064847]
[1721191041215,0.0619,65738.0,65737.0,1.07378607]
[1721191041338,0.08027,65743.0,65742.0,0.760547]
[1721191041550,0.08027,65743.0,65742.0,1.19106237]
[1721191041881,0.08027,65743.0,65742.0,1.19998179]
[1721191043258,0.08027,65743.0,65742.0,1.19998451]
[1721191043904,0.08027,65743.0,65742.0,0.89576551]
[1721191044545,0.08027,65743.0,65742.0,0.76946642]
[1721191044719,0.08027,65743.0,65742.0,0.89576494]
[1721191045128,0.08027,65743.0,65742.0,1.19998394]
[1721191045504,0.08027,65743.0,65742.0,1.07368542]
[1721191048342,0.08027,65743.0,65742.0,0.76946642]
[1721191048495,0.77377274,65743.0,65742.0,0.00891942]
[1721191049019,0.152113,65741.0,65735.0,0.152125]
[1721191049225,0.1453,65738.0,65735.0,0.152125]
[1721191049423,0.06527097,65737.0,65736.0,0.00808253]
[1721191049740,0.2202,65739.0,65735.0,0.152125]
[1721191049946,0.1433,65737.0,65736.0,0.00808253]
[1721191050155,0.1433,65737.0,65735.0,0.152125]
[1721191050304,0.14607097,65736.0,65735.0,0.152125]
[1721191050505,0.1433,65736.0,65735.0,0.152125]
[1721191051248,0.1433,65736.0,65735.0,0.456376]
[1721191051401,0.1433,65736.0,65735.0,0.760627]
[1721191051597,0.1433,65736.0,65735.0,1.064878]
[1721191051854,0.1433,65736.0,65735.0,1.068878]
[1721191052231,0.1433,65736.0,65735.0,1.064878]
[1721191052433,0.1433,65736.0,65735.0,1.069878]
[1721191052701,0.1433,65736.0,65735.0,1.066878]
[1721191053148,0.1433,65736.0,65735.0,1.068878]
[1721191053914,0.1433,65736.0,65735.0,1.066878]
[1721191054115,0.0803,65741.0,65740.0,1.064798]
[1721191054553,0.0803,65741.0,65740.0,0.76057]
[1721191054735,0.1453,65741.0,65740.0,0.76057]
[1721191058588,0.1453,65741.0,65729.0,0.776276]
[1721191058589,0.0605,65740.0,65734.0,0.152127]
[1721191058800,0.1399,65739.0,65735.0,0.152125]
[1721191059131,0.1399,65739.0,65734.0,0.152128]
[1721191059132,0.1399,65737.0,65734.0,0.152128]
[1721191059262,0.06327097,65736.0,65735.0,0.152125]
[1721191059445,0.0605,65736.0,65735.0,0.152125]
[1721191059949,0.0605,65736.0,65735.0,0.16021042]
[1721191060205,0.0605,65736.0,65735.0,0.16121042]
[1721191061607,0.0605,65736.0,65735.0,0.46546142]
[1721191062052,0.0605,65736.0,65735.0,0.46446142]
[1721191062272,0.0605,65736.0,65735.0,0.46946142]
[1721191062901,0.0605,65736.0,65735.0,1.07796342]
[1721191063107,0.0605,65736.0,65735.0,1.20328243]
[1721191063535,0.0605,65736.0,65735.0,1.20028243]
[1721191063937,0.0605,65736.0,65735.0,1.20128243]
[1721191064622,0.0605,65736.0,65735.0,1.07396342]
[1721191064807,0.0605,65736.0,65735.0,1.20028196]
[1721191065008,0.08304,65741.0,65740.0,0.76057]
[1721191065362,0.08304,65741.0,65740.0,0.76863924]
[1721191065363,0.14854,65741.0,65740.0,0.76863924]
[1721191065624,0.14854,65741.0,65740.0,0.89495389]
[1721191065920,0.14854,65741.0,65740.0,0.76863924]
[1721191067112,0.14854,65741.0,65740.0,0.8949559]
[1721191067311,0.06634,65741.0,65740.0,0.8949559]
[1721191067564,0.06634,65741.0,65740.0,1.1991839]
[1721191068152,0.06634,65741.0,65740.0,0.8949559]
[1721191068357,0.14724,65741.0,65740.0,0.76863924]
[1721191068816,0.14724,65741.0,65740.0,0.89495611]
[1721191069255,0.14724,65741.0,65740.0,0.13438611]
[1721191069409,0.14724,65741.0,65740.0,0.16018324]
[1721191069662,0.14724,65741.0,65740.0,0.46441124]
[1721191070596,0.14724,65741.0,65740.0,0.59072871]
[1721191071776,0.14724,65741.0,65740.0,0.46441124]
[1721191071946,0.14724,65741.0,65740.0,0.59072833]
[1721191072090,0.14724,65741.0,65740.0,0.89495633]
[1721191072302,0.14724,65741.0,65740.0,0.89495509]
[1721191073322,0.14724,65741.0,65740.0,0.89495539]
[1721191075003,0.14724,65741.0,65740.0,0.76863924]
[1721191075174,0.14724,65741.0,65740.0,0.89495704]
[1721191076989,0.00084,65741.0,65740.0,1.19918504]
[1721191077999,0.00084,65741.0,65740.0,1.95169478]
[1721191078219,0.00084,65741.0,65740.0,3.14536022]
[1721191079591,0.00084,65741.0,65740.0,3.22759203]
[1721191080470,0.00084,65741.0,65740.0,3.51057365]
[1721191080827,0.00084,65741.0,65740.0,3.51057007]
[1721191081215,0.00084,65741.0,65740.0,3.60165786]
[1721191081637,0.00084,65741.0,65740.0,3.60166534]
[1721191081808,0.00084,65741.0,65740.0,3.73156121]
[1721191082437,0.00084,65741.0,65740.0,3.58764459]
[1721191082625,0.00084,65741.0,65740.0,3.60164459]
[1721191083291,0.00084,65741.0,65740.0,3.58764459]
[1721191083510,0.00084,65741.0,65740.0,3.60164459]
[1721191083712,0.00084,65741.0,65740.0,3.38940989]
[1721191084036,0.00084,65741.0,65740.0,3.55083668]
[1721191084232,0.00084,65741.0,65740.0,3.38940989]
[1721191084611,0.00084,65741.0,65740.0,3.07046414]
[1721191084814,0.00084,65741.0,65740.0,3.04246414]
[1721191085012,0.00084,65741.0,65740.0,3.05646414]
[1721191085220,0.00084,65741.0,65740.0,3.07046414]
[1721191085433,0.00084,65741.0,65740.0,3.00215984]
[1721191085834,0.00084,65741.0,65740.0,3.32109581]
[1721191086011,0.00084,65741.0,65740.0,3.07045267]
[1721191086229,0.00084,65741.0,65740.0,3.00215966]
[1721191086406,0.00084,65741.0,65740.0,2.98388951]
[1721191086626,0.00084,65741.0,65740.0,2.85760498]
[1721191086822,0.00084,65741.0,65740.0,2.98388949]
[1721191087483,0.00084,65741.0,65740.0,3.02941104]
[1721191088229,0.00084,65741.0,65740.0,2.85760498]
[1721191088433,0.00084,65741.0,65740.0,3.32110116]
[1721191088831,0.00084,65741.0,65740.0,3.41215025]
[1721191089984,0.00084,65741.0,65740.0,3.73143648]
[1721191090184,0.01837,65743.0,65742.0,2.063704]
[1721191090389,0.01837,65743.0,65742.0,3.6789967]
[1721191091466,0.01837,65743.0,65742.0,3.76996117]
[1721191091669,0.01837,65743.0,65742.0,4.08818017]
[1721191092036,0.01837,65743.0,65742.0,4.86218017]
[1721191092236,0.01837,65743.0,65742.0,4.7712157]
[1721191092475,0.01837,65743.0,65742.0,4.84816575]
[1721191092651,0.01837,65743.0,65742.0,4.83416575]
[1721191092887,0.01837,65743.0,65742.0,4.86216575]
[1721191093096,0.01837,65743.0,65742.0,4.86586804]
[1721191093421,0.01837,65743.0,65742.0,4.99212821]
[1721191093593,0.04941694,65751.0,65750.0,2.572983]
[1721191093768,0.04941694,65751.0,65750.0,3.72983543]
[1721191093976,0.04084,65764.0,65752.0,1.114605]
[1721191094192,0.04084,65764.0,65752.0,2.1116073]
[1721191094413,0.09082371,65764.0,65752.0,2.1116073]
[1721191094782,0.09082371,65764.0,65752.0,2.82987335]
[1721191095600,0.09082371,65764.0,65752.0,2.84387335]
[1721191095987,0.09082371,65764.0,65752.0,2.85787335]
[1721191096204,0.09082371,65764.0,65752.0,2.85786713]
[1721191096854,1e-06,65755.0,65754.0,0.05]
[1721191097055,1e-06,65756.0,65755.0,0.349579]
[1721191097265,1e-06,65756.0,65755.0,2.01905472]
[1721191097556,1e-06,65756.0,65755.0,3.09754568]
[1721191097756,1e-06,65756.0,65755.0,3.00662876]
[1721191097935,1e-06,65756.0,65755.0,3.70662876]
[1721191098141,1e-06,65756.0,65755.0,4.01078776]
[1721191098339,1e-06,65756.0,65755.0,3.91215619]
[1721191098542,1e-06,65756.0,65755.0,4.13843036]
[1721191098763,1e-06,65756.0,65755.0,4.12443036]
[1721191098981,1e-06,65756.0,65755.0,4.02478421]
[1721191099191,1e-06,65756.0,65755.0,3.70168245]
[1721191099386,1e-06,65756.0,65755.0,4.02474298]
[1721191099589,0.09082371,65764.0,65758.0,2.426942]
[1721191099803,0.09082371,65764.0,65758.0,4.05896853]
[1721191099992,0.04084,65764.0,65758.0,4.09323173]
[1721191100241,0.04084,65764.0,65758.0,3.15464506]
[1721191100828,0.0615,65761.0,65758.0,2.52576367]
[1721191100981,0.0615,65761.0,65758.0,1.80750006]
[1721191101386,0.0615,65761.0,65758.0,1.82150006]
[1721191101584,0.0615,65761.0,65758.0,1.83550006]
[1721191101773,0.00084,65763.0,65758.0,2.13963565]
[1721191101977,0.00084,65763.0,65758.0,2.11163565]
[1721191102186,0.00084,65763.0,65758.0,2.28263565]
[1721191102814,0.00084,65763.0,65758.0,2.57278065]
[1721191102964,0.00084,65763.0,65758.0,2.58678065]
[1721191103169,0.00084,65763.0,65758.0,2.82148978]
[1721191103488,0.00084,65763.0,65758.0,2.776149]
[1721191103689,0.00084,65763.0,65758.0,2.82526434]
[1721191103866,0.00084,65763.0,65758.0,2.83926434]
[1721191104071,0.00084,65763.0,65758.0,3.53926434]
[1721191104234,0.00084,65763.0,65758.0,3.52526434]
[1721191104462,0.00084,65763.0,65758.0,3.52526452]
[1721191104663,0.00084,65763.0,65758.0,3.52526437]
[1721191104892,0.00084,65763.0,65758.0,3.53926437]
[1721191105098,0.00084,65763.0,65758.0,3.52526437]
[1721191105333,0.00084,65763.0,65758.0,3.930341]
[1721191105530,0.00084,65763.0,65758.0,3.87629358]
[1721191105781,0.00084,65763.0,65758.0,4.10203706]
[1721191105983,0.00084,65763.0,65758.0,3.94425097]
[1721191106266,0.00084,65763.0,65758.0,3.76496858]
[1721191106494,0.00084,65763.0,65758.0,4.10203832]
[1721191107383,0.00084,65763.0,65758.0,4.08803832]
[1721191107519,0.00084,65763.0,65758.0,4.10203832]
[1721191107984,0.00084,65763.0,65758.0,4.08803832]
[1721191108535,0.00084,65763.0,65758.0,3.68301119]
[1721191108739,0.00084,65763.0,65758.0,4.08803142]
[1721191108950,0.00084,65763.0,65758.0,4.10203142]
[1721191109549,0.00084,65763.0,65758.0,4.04808334]
[1721191109884,0.00084,65763.0,65758.0,4.03408334]
[1721191110122,0.00084,65763.0,65758.0,4.04808334]
[1721191111898,0.00084,65763.0,65758.0,4.04808502]
[1721191112493,0.00084,65763.0,65758.0,4.13867873]
[1721191112847,0.00084,65763.0,65758.0,4.19957573]
[1721191114492,0.00084,65763.0,65758.0,4.10898202]
[1721191115035,0.00084,65763.0,65758.0,3.73029061]
[1721191115265,0.00084,65763.0,65758.0,4.10898163]
[1721191116649,0.00084,65763.0,65758.0,4.22224513]
[1721191117635,0.00084,65763.0,65758.0,4.10898163]
[1721191118237,0.00084,65763.0,65758.0,3.72979969]
[1721191118437,0.00084,65763.0,65758.0,4.04537074]
[1721191118639,0.00084,65763.0,65758.0,3.96597074]
[1721191120436,0.00084,65763.0,65758.0,3.90507374]
[1721191121470,0.00838,65759.0,65758.0,3.90507478]
[1721191121689,0.00303956,65789.0,65769.0,0.05]
[1721191121899,0.04993559,65772.0,65771.0,0.506127]
[1721191122080,0.0611,65778.0,65777.0,0.202028]
[1721191122374,0.1389,65781.0,65779.0,0.81012]
[1721191122585,0.0611,65784.0,65779.0,2.18816879]
[1721191122785,0.0611,65784.0,65779.0,2.25940288]
[1721191122939,0.0611,65784.0,65779.0,2.24168232]
[1721191123168,0.0611,65784.0,65779.0,2.25940047]
[1721191123543,0.0611,65784.0,65779.0,3.36446417]
[1721191123744,0.0611,65784.0,65779.0,3.29640204]
[1721191124489,0.0611,65784.0,65779.0,2.58772712]
[1721191124687,0.0611,65784.0,65779.0,3.37141869]
[1721191125030,0.0611,65784.0,65779.0,3.05590941]
[1721191125255,0.0611,65784.0,65779.0,3.37141869]
[1721191125402,0.0611,65784.0,65779.0,3.37941869]
[1721191125603,0.0611,65784.0,65779.0,3.46909062]
[1721191125770,0.0611,65784.0,65779.0,3.31133853]